[Event "66th HUN-ch Women 2018"]
[Site "Budapest"]
[Date "2018.12.09"]
[Round "7"]
[White "Havanecz, Bianka"]
[Black "Gal, Hanna Krisztina"]
[Result "1-0"]
[ECO "E97"]
[WhiteElo "2247"]
[BlackElo "2189"]
[Annotator "NA"]
[PlyCount "125"]
[EventDate "2018.12.03"]
[EventType "tourn"]
[EventCountry "HUN"]
[SourceTitle "playchess.com"]
[Source "ChessBase"]
[SourceQuality "1"]
[TimeControl "40/5400+30:1800+30"]

1. d4 {[%emt 0:00:02]} Nf6 {[%emt 0:00:09]} 2. c4 {[%emt 0:00:06]} g6 {[%emt 0:00:06]} 3. Nf3 {[%emt 0:00:14]} Bg7 {[%emt 0:00:09]} 4. Nc3 {[%emt 0:00:06]} O-O {[%emt 0:00:14]} 5. e4 {[%emt 0:00:04]} d6 {[%emt 0:00:10]} 6. Be2 {[%emt 0:00:06]} e5 {[%emt 0:00:21]} 7. O-O {[%emt 0:00:07]} Nc6 {[%emt 0:00:08]} 8. dxe5 {[%emt 0:00:06]} dxe5 {[%emt 0:00:16]} 9. Bg5 {[%emt 0:00:05]} Qxd1 {[%emt 0:01:49]} 10. Rfxd1 {[%emt 0:00:04]} h6 {[%emt 0:02:22]} 11. Be3 {[%emt 0:00:04]} Bg4 {[%emt 0:07:07]} 12. h3 {[%emt 0:00:07]} Bxf3 {[%emt 0:00:28]} 13. Bxf3 {[%emt 0:00:04]} Rfc8 {[%emt 0:12:02] E97: King's Indian: Classical Main Line (6...e5 7 0-0 Nc6): 8 Be3 and 8 d5 Ne7, not 9 Ne1} (13... Rfd8 14. Nd5 Ne8 15. h4 Nd4 16. Bxd4 exd4 17. Nf4 h5 18. Nd3 c6 19. g3 Nc7 20. Bg2 Ne6 21. e5 Bf8 22. f4 Nc5 23. Rac1 {½-½ (23) Kryakvin,D (2595)-Iljiushenok,I (2539) Sochi 2018}) 14. Rac1 $146 {[%emt 0:16:57]} ({Predecessor:} 14. Nd5 Ne8 15. c5 Rd8 16. Rac1 Rab8 17. b4 Kf8 18. b5 Nd4 19. Bxd4 exd4 20. Nb4 h5 21. c6 {½-½ (85) Sielecki,C (2439)-Perske,T (2277) Bad Wiessee 2014}) 14... Ne8 {[%emt 0:06:46]} 15. c5 {[%emt 0:15:48]} Rd8 {[%emt 0:05:33]} 16. Rxd8 {[%emt 0:07:07]} Rxd8 {[%emt 0:00:12]} 17. Be2 {[%emt 0:00:06]} Nd4 {[%emt 0:03:10]} 18. Bc4 {[%emt 0:00:06]} c6 {[%emt 0:01:14]} 19. f4 {[%emt 0:03:43]} Nc7 {[%emt 0:03:40]} 20. fxe5 {[%emt 0:02:24]} Nce6 {[%emt 0:01:06]} 21. Rd1 {[%emt 0:04:39]} g5 {[%emt 0:06:09]} 22. Bxe6 {[%emt 0:08:00]} Nxe6 {[%emt 0:00:15]} 23. Rxd8+ {[%emt 0:00:10]} Nxd8 {[%emt 0:00:07]} 24. Ne2 {[%emt 0:00:30]} Ne6 {[%emt 0:06:06]} 25. b4 {[%emt 0:01:55]} Bxe5 {[%emt 0:00:28]} 26. Kf2 {[%emt 0:00:23]} Kg7 {[%emt 0:01:56]} 27. Bd2 {[%emt 0:01:33]} Kf6 {[%emt 0:04:01]} 28. Nc1 {[%emt 0:00:37]} a5 {[%emt 0:04:36]} 29. Nb3 {[%emt 0:01:07]} axb4 {[%emt 0:01:18]} 30. Bxb4 {[%emt 0:00:06]} Nd4 {[%emt 0:10:20] [#]} 31. Na5 $1 {[%emt 0:03:07]} Nc2 {[%emt 0:00:09]} 32. Bd2 {[%emt 0:06:13]} Bd4+ {[%emt 0:00:11]} 33. Ke2 {[%emt 0:00:06]} Bxc5 {[%emt 0:00:47]} 34. Nxb7 {[%emt 0:01:02]} Bb4 {[%emt 0:08:10]} (34... Nd4+ $16 35. Kd3 Ne6) 35. Bxb4 {[%emt 0:03:33]} Nxb4 {[%emt 0:00:03]} 36. a3 {[%emt 0:00:15]} Na6 {[%emt 0:00:33]} 37. Nd6 {[%emt 0:00:31]} (37. Ke3 $18) 37... h5 {[%emt 0:05:21]} 38. g3 {[%emt 0:01:43]} Nc5 {[%emt 0:02:18]} 39. Ke3 {[%emt 0:00:30]} Ke6 {[%emt 0:01:32]} 40. Nc4 {[%emt 0:00:00]} f5 {[%emt 0:00:00]} 41. exf5+ {[%emt 0:01:08]} Kxf5 {[%emt 0:04:57]} 42. Na5 {[%emt 0:00:26]} g4 {[%emt 0:00:29]} 43. h4 {[%emt 0:05:20]} Ne4 {[%emt 0:01:05]} 44. Nxc6 {[%emt 0:00:06]} Nxg3 {[%emt 0:00:08]} 45. a4 {[%emt 0:00:31]} Ne4 {[%emt 0:03:46]} 46. Ne7+ {[%emt 0:01:43]} Kf6 {[%emt 0:06:57]} 47. Ng8+ {[%emt 0:06:33]} ({Wrong is} 47. Kxe4 $2 Kxe7 48. a5 Kd6 $19) 47... Ke5 {[%emt 0:01:04]} 48. a5 {[%emt 0:00:11]} Nd6 {[%emt 0:09:54]} 49. a6 {[%emt 0:01:58]} Nc4+ $2 {[%emt 0:00:09]} (49... Nc8 $11) 50. Kf2 {[%emt 0:01:53]} Kf4 {[%emt 0:00:15]} 51. a7 {[%emt 0:01:53]} g3+ {[%emt 0:00:18]} 52. Kg2 {[%emt 0:00:04]} Nb6 {[%emt 0:00:07]} 53. Nf6 {[%emt 0:00:31]} Na8 {[%emt 0:01:04]} 54. Nxh5+ {[%emt 0:00:26] Double Attack} Kg4 {[%emt 0:00:07]} 55. Nxg3 {[%emt 0:00:07]} Kxh4 {[%emt 0:00:03]} 56. Kf3 {[%emt 0:00:05]} Kg5 {[%emt 0:00:11]} 57. Ke4 {[%emt 0:00:10]} Kf6 {[%emt 0:00:59]} 58. Kd5 {[%emt 0:00:08]} Ke7 {[%emt 0:00:24] [#]} 59. Kc6 $1 {[%emt 0:00:13]} Kd8 {[%emt 0:00:32]} 60. Kb7 {[%emt 0:00:08]} Nc7 {[%emt 0:01:32]} 61. Nf5 {[%emt 0:00:56]} Kd7 {[%emt 0:00:24]} 62. Nd4 {[%emt 0:00:22]} Na8 {[%emt 0:01:05]} 63. Ne6 {[%emt 0:01:54]} 1-0

[Event "66th HUN-ch Women 2018"]
[Site "Budapest"]
[Date "2018.12.09"]
[Round "7"]
[White "Varga, Klara"]
[Black "Egyed, Judit"]
[Result "1-0"]
[ECO "A34"]
[WhiteElo "2242"]
[BlackElo "2045"]
[Annotator "NA"]
[PlyCount "75"]
[EventDate "2018.12.03"]
[EventType "tourn"]
[EventCountry "HUN"]
[SourceTitle "playchess.com"]
[Source "ChessBase"]
[SourceQuality "1"]
[TimeControl "40/5400+30:1800+30"]

1. c4 {[%emt 0:00:04]} c5 {[%emt 0:00:05]} 2. Nc3 {[%emt 0:00:03]} g6 {[%emt 0:00:04]} 3. e4 {[%emt 0:00:14]} Bg7 {[%emt 0:00:08]} 4. Nge2 {[%emt 0:00:04]} Nc6 {[%emt 0:00:20]} 5. d3 {[%emt 0:00:20]} d6 {[%emt 0:02:44]} 6. g3 {[%emt 0:01:00]} Bg4 {[%emt 0:10:03]} 7. Bg2 {[%emt 0:01:06]} Nd4 {[%emt 0:00:27]} 8. h3 {[%emt 0:01:11]} Bf3 {[%emt 0:02:31]} 9. O-O {[%emt 0:01:07]} Qd7 {[%emt 0:03:44]} 10. Be3 {[%emt 0:00:47]} Nxe2+ {[%emt 0:03:06]} 11. Nxe2 {[%emt 0:00:07]} Bxg2 {[%emt 0:00:02]} 12. Kxg2 {[%emt 0:00:09]} Bxb2 {[%emt 0:00:15]} 13. Rb1 {[%emt 0:01:21]} Bg7 {[%emt 0:00:21]} 14. f4 {[%emt 0:00:20]} e6 {[%emt 0:04:56]} 15. d4 {[%emt 0:00:59]} b6 {[%emt 0:09:52]} 16. f5 {[%emt 0:07:35]} Nf6 {[%emt 0:22:06]} 17. e5 {[%emt 0:10:45]} dxe5 {[%emt 0:00:08]} 18. dxe5 {[%emt 0:00:33]} Qc6+ {[%emt 0:00:11]} 19. Kh2 {[%emt 0:00:18]} Nd7 {[%emt 0:00:27]} 20. f6 {[%emt 0:00:20]} Bf8 {[%emt 0:00:02]} 21. Bf4 {[%emt 0:02:23]} g5 {[%emt 0:03:48]} 22. Bxg5 {[%emt 0:00:07]} Nxe5 {[%emt 0:00:04]} 23. Nc3 {[%emt 0:01:56]} Rg8 {[%emt 0:07:31]} 24. Bf4 {[%emt 0:01:30]} Ng6 {[%emt 0:00:22]} 25. Ne4 {[%emt 0:04:42]} Nxf4 {[%emt 0:11:24]} 26. Rxf4 {[%emt 0:00:11]} Rd8 {[%emt 0:04:52]} 27. Qf3 {[%emt 0:02:52]} Qa4 {[%emt 0:01:17]} 28. Re1 {[%emt 0:04:25]} Bd6 {[%emt 0:07:39]} 29. Nxd6+ {[%emt 0:01:00]} Rxd6 {[%emt 0:00:04]} 30. Qa8+ {[%emt 0:00:55]} Rd8 {[%emt 0:01:27]} 31. Rxe6+ {[%emt 0:00:10]} fxe6 {[%emt 0:00:49]} 32. f7+ {[%emt 0:00:05]} Ke7 {[%emt 0:00:33]} 33. fxg8=N+ {[%emt 0:03:53]} Rxg8 {[%emt 0:01:23]} 34. Qxg8 {[%emt 0:00:58]} Qc2+ {[%emt 0:00:19]} 35. Kg1 {[%emt 0:00:17]} Qd1+ {[%emt 0:00:10]} 36. Rf1 {[%emt 0:00:33]} Qd4+ {[%emt 0:00:26]} 37. Rf2 {[%emt 0:00:11]} b5 {[%emt 0:02:21]} 38. Qf8+ {[%emt 0:01:55]} 1-0

[Event "66th HUN-ch Women 2018"]
[Site "Budapest"]
[Date "2018.12.09"]
[Round "7"]
[White "Juhasz, Barbara"]
[Black "Terbe, Zsuzsanna"]
[Result "1/2-1/2"]
[ECO "B20"]
[WhiteElo "2176"]
[BlackElo "2180"]
[Annotator "ChessBase"]
[PlyCount "65"]
[EventDate "2018.12.03"]
[EventType "tourn"]
[EventCountry "HUN"]
[SourceTitle "playchess.com"]
[Source "ChessBase"]
[SourceQuality "1"]
[TimeControl "40/5400+30:1800+30"]

1. e4 {[%emt 0:00:09]} c5 {[%emt 0:00:13]} 2. b3 {[%emt 0:01:35]} Nc6 {[%emt 0:00:42]} 3. Bb2 {[%emt 0:00:05]} e5 {[%emt 0:00:56]} 4. Bc4 {[%emt 0:02:50]} d6 {[%emt 0:01:09]} 5. Ne2 {[%emt 0:00:18]} Nf6 {[%emt 0:01:05]} 6. Nbc3 {[%emt 0:00:09]} Be7 {[%emt 0:05:02]} 7. d3 {[%emt 0:00:31]} a6 {[%emt 0:11:32]} 8. a4 {[%emt 0:00:16]} Rb8 {[%emt 0:00:45]} 9. Qd2 {[%emt 0:35:07]} Nd4 {[%emt 0:02:06]} 10. a5 {[%emt 0:00:22]} O-O {[%emt 0:02:17]} 11. O-O {[%emt 0:01:04]} Nh5 {[%emt 0:12:20]} 12. Nxd4 {[%emt 0:08:31]} cxd4 {[%emt 0:00:30]} 13. Nd5 {[%emt 0:00:08]} Bg5 {[%emt 0:01:53]} 14. Qe2 {[%emt 0:00:25]} g6 {[%emt 0:06:53]} 15. c3 {[%emt 0:01:51]} dxc3 {[%emt 0:02:53]} 16. Bxc3 {[%emt 0:00:05]} Be6 {[%emt 0:00:14]} 17. Nb6 {[%emt 0:06:52]} Nf4 {[%emt 0:05:48]} 18. Qd1 {[%emt 0:00:29]} Bf6 {[%emt 0:04:08]} 19. g3 {[%emt 0:16:58]} Nh5 {[%emt 0:08:40]} 20. d4 {[%emt 0:03:27]} Qe7 {[%emt 0:06:19]} 21. Bxe6 {[%emt 0:07:35]} Qxe6 {[%emt 0:00:13]} 22. Nd5 {[%emt 0:00:14]} Bg7 {[%emt 0:01:39]} 23. dxe5 {[%emt 0:05:36]} dxe5 {[%emt 0:00:07]} 24. Qe2 {[%emt 0:00:34]} Nf6 {[%emt 0:05:23]} 25. Rfd1 {[%emt 0:02:51]} Rfd8 {[%emt 0:01:20]} 26. Nb6 {[%emt 0:02:20]} h5 {[%emt 0:02:33]} 27. Nc4 {[%emt 0:00:10]} Ne8 {[%emt 0:05:54]} 28. Rxd8 {[%emt 0:01:44]} Rxd8 {[%emt 0:00:06]} 29. Rd1 {[%emt 0:00:03]} Rxd1+ {[%emt 0:02:07]} 30. Qxd1 {[%emt 0:00:05]} f6 {[%emt 0:01:27]} 31. Bb4 {[%emt 0:01:24]} Bf8 {[%emt 0:01:23]} 32. Bxf8 {[%emt 0:01:04]} Kxf8 {[%emt 0:00:01]} 33. Qd2 1/2-1/2

[Event "66th HUN-ch Women 2018"]
[Site "Budapest"]
[Date "2018.12.09"]
[Round "7"]
[White "Erdos, Boglarka"]
[Black "Terbe, Julianna"]
[Result "1-0"]
[ECO "A01"]
[WhiteElo "2137"]
[BlackElo "2272"]
[Annotator "ChessBase"]
[PlyCount "95"]
[EventDate "2018.12.03"]
[EventType "tourn"]
[EventCountry "HUN"]
[SourceTitle "playchess.com"]
[Source "ChessBase"]
[SourceQuality "1"]
[TimeControl "40/5400+30:1800+30"]

1. b3 {[%emt 0:00:03]} d5 {[%emt 0:00:34]} 2. Bb2 {[%emt 0:00:06]} Bf5 {[%emt 0:00:30]} 3. Nf3 {[%emt 0:01:06]} e6 {[%emt 0:00:14]} 4. e3 {[%emt 0:01:20]} Nf6 {[%emt 0:00:12]} 5. Be2 {[%emt 0:00:39]} h6 {[%emt 0:00:10]} 6. O-O {[%emt 0:00:41]} Nbd7 {[%emt 0:00:11]} 7. c4 {[%emt 0:13:01]} Bd6 {[%emt 0:01:07]} 8. d4 {[%emt 0:03:09]} c6 {[%emt 0:00:07]} 9. Nbd2 {[%emt 0:00:25]} O-O {[%emt 0:00:18]} 10. c5 {[%emt 0:06:19]} Bb8 {[%emt 0:03:02]} 11. b4 {[%emt 0:01:20]} a6 {[%emt 0:00:23]} 12. a4 {[%emt 0:05:28]} Re8 {[%emt 0:00:15]} 13. b5 {[%emt 0:04:25]} e5 {[%emt 0:07:16]} 14. Nxe5 {[%emt 0:23:59]} Nxe5 {[%emt 0:00:41]} 15. dxe5 {[%emt 0:00:06]} Nd7 {[%emt 0:08:45]} 16. Nb3 {[%emt 0:12:16]} Nxe5 {[%emt 0:03:53]} 17. Qd4 {[%emt 0:02:31]} f6 {[%emt 0:03:04]} 18. Bc3 {[%emt 0:07:52]} Nf7 {[%emt 0:08:03]} 19. Qd1 {[%emt 0:04:37]} Qc7 {[%emt 0:06:54]} 20. g3 {[%emt 0:00:08]} Ng5 {[%emt 0:00:08]} 21. Bd4 {[%emt 0:03:55]} Bh3 {[%emt 0:05:53]} 22. Re1 {[%emt 0:00:07]} Ne4 {[%emt 0:00:09]} 23. Bg4 {[%emt 0:02:55]} Bxg4 {[%emt 0:03:13]} 24. Qxg4 {[%emt 0:00:02]} Qf7 {[%emt 0:01:48]} 25. Reb1 {[%emt 0:03:35]} h5 {[%emt 0:01:06]} 26. Qe2 {[%emt 0:00:50]} axb5 {[%emt 0:02:40]} 27. axb5 {[%emt 0:00:03]} Rxa1 {[%emt 0:00:05]} 28. Rxa1 {[%emt 0:00:19]} h4 {[%emt 0:00:05]} 29. bxc6 {[%emt 0:01:40]} bxc6 {[%emt 0:00:10]} 30. Qg4 {[%emt 0:00:41]} hxg3 {[%emt 0:02:25]} 31. hxg3 {[%emt 0:00:02]} f5 {[%emt 0:00:24]} 32. Qh3 {[%emt 0:01:27]} Ng5 {[%emt 0:01:09]} 33. Qh1 {[%emt 0:00:16]} Re6 {[%emt 0:03:45]} 34. Kg2 {[%emt 0:00:57]} Rh6 {[%emt 0:02:02]} 35. Qd1 {[%emt 0:00:09]} Qe6 {[%emt 0:00:05]} 36. Ra8 {[%emt 0:00:46]} f4 {[%emt 0:03:50]} 37. Rxb8+ {[%emt 0:00:07]} Kh7 {[%emt 0:00:03]} 38. Qd3+ {[%emt 0:00:57]} Ne4 {[%emt 0:00:11]} 39. exf4 {[%emt 0:00:34]} Qh3+ {[%emt 0:14:17]} 40. Kf3 {[%emt 0:00:00]} Qf5 {[%emt 0:00:00]} 41. Rb7 {[%emt 0:14:06]} Rh1 {[%emt 0:00:37]} 42. Rxg7+ {[%emt 0:06:22]} Kh6 {[%emt 0:00:01]} 43. Ke2 {[%emt 0:02:44]} Qh5+ {[%emt 0:07:09]} 44. g4 {[%emt 0:00:53]} Ng3+ {[%emt 0:00:04]} 45. Qxg3 {[%emt 0:00:43]} Re1+ {[%emt 0:00:10]} 46. Kd2 {[%emt 0:04:45]} Re2+ {[%emt 0:00:14]} 47. Kc3 {[%emt 0:00:35]} Rc2+ {[%emt 0:00:49]} 48. Kxc2 {[%emt 0:00:16]} 1-0

[Event "66th HUN-ch Women 2018"]
[Site "Budapest"]
[Date "2018.12.09"]
[Round "7"]
[White "Gaal, Zsoka"]
[Black "Lakos, Nikoletta"]
[Result "1/2-1/2"]
[ECO "A41"]
[WhiteElo "2020"]
[BlackElo "2243"]
[Annotator "NA"]
[PlyCount "34"]
[EventDate "2018.12.03"]
[EventType "tourn"]
[EventCountry "HUN"]
[SourceTitle "playchess.com"]
[Source "ChessBase"]
[SourceQuality "1"]
[TimeControl "40/5400+30:1800+30"]

1. Nf3 {[%emt 0:00:05]} d6 {[%emt 0:00:24]} 2. d4 {[%emt 0:00:06]} Bg4 {[%emt 0:00:23]} 3. g3 {[%emt 0:00:51]} Bxf3 {[%emt 0:00:24]} 4. exf3 {[%emt 0:00:10]} e6 {[%emt 0:00:39]} 5. Bg2 {[%emt 0:00:44]} c6 {[%emt 0:01:01]} 6. O-O {[%emt 0:00:57]} g6 {[%emt 0:00:59]} 7. f4 {[%emt 0:01:41]} Bg7 {[%emt 0:00:58]} 8. c3 {[%emt 0:00:33]} Ne7 {[%emt 0:03:34]} 9. Nd2 {[%emt 0:01:30]} d5 {[%emt 0:01:15]} 10. Qb3 {[%emt 0:01:25]} Qb6 {[%emt 0:00:45]} 11. Qc2 {[%emt 0:00:19]} Qa5 {[%emt 0:01:24]} 12. Qb3 {[%emt 0:00:47]} Qb6 {[%emt 0:00:30]} 13. Qa3 {[%emt 0:00:45]} Qa6 {[%emt 0:00:46]} 14. Qb3 {[%emt 0:03:09]} Qb6 {[%emt 0:00:40]} 15. Qa3 {[%emt 0:00:36]} Qa6 {[%emt 0:00:46]} 16. Qb3 {[%emt 0:01:28]} Qb6 {[%emt 0:00:42]} 17. Qa3 {[%emt 0:03:00]} Qa6 {[%emt 0:01:16]} 1/2-1/2

[Event "66th HUN-ch Women 2018"]
[Site "Budapest"]
[Date "2018.12.10"]
[Round "8"]
[White "Juhasz, Barbara"]
[Black "Havanecz, Bianka"]
[Result "0-1"]
[ECO "C45"]
[WhiteElo "2176"]
[BlackElo "2247"]
[Annotator "NA RC"]
[PlyCount "54"]
[EventDate "2018.12.03"]
[EventType "tourn"]
[EventCountry "HUN"]
[SourceTitle "playchess.com"]
[Source "ChessBase"]
[SourceQuality "1"]
[TimeControl "40/5400+30:1800+30"]

{[%evp 8,53,27,0,2,0,0,6,7,-19,-14,-6,32767,-53,-61,32767,-2,-91,-129,32767,4,32767,32767,32767,32767,32767,32767,32767,32767,144,32767,32767,216,235,226,149,138,135,161,157,197,152,247,-357,-349,-331,-356,-496]} 1. e4 {[%emt 0:00:21]} e5 {[%emt 0:00:06]} 2. Nf3 {[%emt 0:00:25]} Nc6 {[%emt 0:00:07]} 3. d4 {[%emt 0:00:12]} exd4 {[%emt 0:00:07]} 4. Nxd4 {[%emt 0:00:06]} Bc5 {[%emt 0:00:33]} 5. Nb3 {[%emt 0:00:06]} Bb6 $1 {[%emt 0:00:15]} 6. Nc3 {[%emt 0:00:17]} Nf6 {[%emt 0:00:15]} 7. Bg5 {[%emt 0:00:20] LiveBook: 100 Games} a5 {[%emt 0:02:40] C45: Scotch Game} (7... h6 8. Bh4 d6 9. f3 g5 10. Bg3 Qe7 11. Qd2 Bd7 12. h4 Rg8 13. O-O-O O-O-O 14. hxg5 hxg5 15. Rh6 Be6 16. Bb5 Bxb3 17. axb3 {1-0 (41) Navara,D (2726)-Malakhov,V (2691) Antalya 2017}) 8. a4 {[%emt 0:12:13]} d6 {[%emt 0:04:09]} 9. Bd3 {[%emt 0:12:57]} Nb4 $146 {[%emt 0:03:27]} ({Predecessor:} 9... Be6 10. O-O Ne5 11. Bb5+ c6 12. Be2 Bxb3 13. cxb3 Bc5 14. Kh1 h6 15. Bh4 Ng6 {½-½ (56) Nowicka,J (1298)-Janiak,I (1142) Ustron 2015}) 10. O-O {[%emt 0:05:57]} h6 {[%emt 0:01:44]} 11. Bh4 {[%emt 0:03:49] [#]} Be6 {[%emt 0:03:37]} (11... g5 $1 $17 {[%cal Rg5h4]} 12. Bg3 O-O) 12. Qe2 {[%emt 0:20:58] [#]} (12. Nd5 $11 {remains equal.}) 12... g5 $1 {[%emt 0:22:51]} 13. Bg3 {[%emt 0:00:05]} Bg4 {[%emt 0:02:59]} ({But not} 13... Nxd3 $6 14. Qxd3 O-O 15. Nd4 $11) (13... h5 $17 14. h4 Nd7) 14. Qd2 {[%emt 0:00:21]} O-O {[%emt 0:09:43]} 15. Kh1 {[%emt 0:09:42]} Nxd3 {[%emt 0:02:55]} 16. Qxd3 {[%emt 0:01:30]} Qd7 {[%emt 0:04:02]} 17. f4 {[%emt 0:00:58]} Kg7 {[%emt 0:04:57]} 18. fxg5 {[%emt 0:01:45]} hxg5 {[%emt 0:00:06]} 19. Nd4 {[%emt 0:03:26]} Rh8 {[%emt 0:04:05]} (19... Rae8 $16) 20. Nf5+ {[%emt 0:12:39]} Kg8 {[%emt 0:03:42]} 21. Nxd6 {[%emt 0:06:49]} Nh5 {[%emt 0:00:06]} 22. Nd5 {[%emt 0:00:16]} Be2 {[%emt 0:03:06]} 23. Nf6+ {[%emt 0:01:34]} Nxf6 {[%emt 0:00:06]} 24. Qxe2 {[%emt 0:00:03]} Nh5 {[%emt 0:00:13]} (24... Qe6 $16) 25. Nf5 $4 {[%emt 0:00:56] [#]} (25. Be5 $18 {was the only winning move.} f6 26. Qc4+ Kh7 27. Rad1 (27. Nxb7 $2 fxe5 28. Qb3 Rhf8 $19)) 25... Qxf5 $1 {[%emt 0:00:28]} 26. Ra3 {[%emt 0:02:43]} Qg6 {[%emt 0:03:28]} 27. Qg4 $19 {[%emt 0:02:17]} Nf6 {[%emt 0:03:35]} 0-1

[Event "66th HUN-ch Women 2018"]
[Site "Budapest"]
[Date "2018.12.11"]
[Round "9"]
[White "Gaal, Zsoka"]
[Black "Egyed, Judit"]
[Result "0-1"]
[ECO "A04"]
[WhiteElo "2020"]
[BlackElo "2045"]
[Annotator "NA RC"]
[PlyCount "98"]
[EventDate "2018.12.03"]
[EventType "tourn"]
[EventCountry "HUN"]
[SourceTitle "playchess.com"]
[Source "ChessBase"]
[SourceQuality "1"]
[TimeControl "40/5400+30:1800+30"]

1. Nf3 {[%emt 0:00:08]} g6 {[%emt 0:00:11]} 2. g3 {[%emt 0:00:24]} Bg7 {[%emt 0:00:05]} 3. d4 {[%emt 0:00:34]} c5 {[%emt 0:01:39]} 4. Bg2 {[%emt 0:01:08]} cxd4 {[%emt 0:01:56]} 5. Nxd4 {[%emt 0:00:49]} Nc6 {[%emt 0:00:13]} 6. Nb3 {[%emt 0:00:55]} Nf6 {[%emt 0:02:04]} 7. c4 {[%emt 0:04:00]} O-O {[%emt 0:01:18]} 8. O-O {[%emt 0:00:27] LiveBook: 42 Games} d6 {[%emt 0:03:09]} 9. Nc3 {[%emt 0:06:25]} Be6 {[%emt 0:07:42] E60: King's Indian: Unusual lines and Fianchetto Variation without Nc3} 10. c5 {[%emt 0:08:36]} Qd7 {[%emt 0:13:51]} (10... d5 11. Bg5 Rc8 12. Bxf6 Bxf6 13. Nxd5 Bxb2 14. Rb1 Bg7 15. e4 Bd7 16. Re1 e6 17. Ne3 Qc7 18. Nc4 Rb8 19. e5 b5 20. cxb6 axb6 21. Rc1 Qa7 22. Nd4 Nxd4 23. Qxd4 {½-½ (23) Nikolic,P (2620)-Rodshtein,M (2664) Germany 2013}) 11. cxd6 {[%emt 0:01:29]} exd6 {[%emt 0:00:06]} 12. Bf4 $146 {[%emt 0:04:34]} ({Predecessor:} 12. Nb5 a6 13. N5d4 Bh3 14. Bg5 Bxg2 15. Kxg2 Ne4 16. Bf4 Nxd4 17. Nxd4 {0-1 (25) Jina,T (1904)-Koller,H (2173) Paleochora 2018}) 12... Rfd8 {[%emt 0:06:52]} 13. Qd2 {[%emt 0:13:51]} Bh3 {[%emt 0:03:10]} 14. Rfd1 {[%emt 0:08:23]} Bxg2 {[%emt 0:01:42]} 15. Kxg2 {[%emt 0:00:03]} d5 {[%emt 0:01:39]} 16. Be3 {[%emt 0:17:48]} Qf5 {[%emt 0:14:23]} 17. Nd4 {[%emt 0:09:45]} Nxd4 {[%emt 0:02:18]} 18. Bxd4 {[%emt 0:00:10]} Ne4 {[%emt 0:02:44]} 19. Nxe4 {[%emt 0:06:18]} dxe4 {[%emt 0:05:31]} 20. Qe3 {[%emt 0:02:25]} Bxd4 {[%emt 0:03:12]} 21. Rxd4 {[%emt 0:00:10]} Rxd4 {[%emt 0:00:06]} 22. Qxd4 {[%emt 0:00:20]} Qg4 {[%emt 0:03:18]} 23. Qe3 {[%emt 0:03:27]} Rc8 {[%emt 0:09:27]} 24. Rd1 {[%emt 0:03:04]} a6 {[%emt 0:04:10]} 25. Rd4 {[%emt 0:03:03]} Re8 {[%emt 0:00:17]} 26. Rd2 {[%emt 0:02:12]} Qe6 {[%emt 0:01:15]} 27. Qb3 {[%emt 0:02:11]} Qxb3 {[%emt 0:01:52]} 28. axb3 {[%emt 0:00:01]} Re5 {[%emt 0:06:30]} 29. Rc2 {[%emt 0:00:54]} Rb5 {[%emt 0:00:46]} 30. Rc3 {[%emt 0:00:08]} Kg7 {[%emt 0:00:24]} 31. Kf1 {[%emt 0:00:52]} Kf6 {[%emt 0:00:39]} 32. e3 {[%emt 0:00:19]} h5 {[%emt 0:00:48]} 33. Ke2 {[%emt 0:00:52]} g5 {[%emt 0:01:15]} 34. h3 {[%emt 0:00:25]} Ke5 {[%emt 0:00:57]} 35. Kd2 {[%emt 0:00:36]} Kd6 {[%emt 0:00:26]} ({Black should play} 35... f6 $17) 36. Ke2 {[%emt 0:00:27]} a5 {[%emt 0:00:37]} 37. Kd2 {[%emt 0:00:30]} a4 {[%emt 0:00:21]} 38. Kc2 {[%emt 0:00:34]} Rf5 {[%emt 0:00:35]} 39. bxa4 {[%emt 0:00:28]} Rxf2+ {[%emt 0:00:06]} 40. Kb3 {[%emt 0:00:00]} Rg2 {[%emt 0:00:00]} 41. h4 $2 {[%emt 0:06:26]} (41. Kc4) 41... g4 {[%emt 0:06:25]} 42. Rc4 {[%emt 0:02:57]} Rxg3 {[%emt 0:06:19]} 43. Rxe4 {[%emt 0:00:07]} Rf3 $19 {[%emt 0:00:07]} 44. Re8 {[%emt 0:08:50]} g3 {[%emt 0:05:24]} 45. Kc4 {[%emt 0:02:47]} Rf6 {[%emt 0:00:05]} 46. Rd8+ {[%emt 0:00:40]} Ke5 {[%emt 0:00:10]} 47. Rd1 {[%emt 0:01:10]} Ke4 {[%emt 0:00:24]} 48. Rg1 {[%emt 0:00:55]} Rc6+ {[%emt 0:00:09]} 49. Kb5 {[%emt 0:00:10]} Rg6 {[%emt 0:00:17]} 0-1